[Event "Early-Titled-Tuesday-Blitz-January-30-2024"]
[Site "Chess.com"]
[Date "2024.01.30"]
[Round "10"]
[White "SahibSinghKnight"]
[Black "JuniorJumper"]
[Result "0-1"]
[WhiteElo "2645"]
[BlackElo "2539"]
[TimeControl "180+1"]
[EndTime "10:01:59 PST"]
[Termination "JuniorJumper won on time"]

1. e4 {[%clk 0:02:59.4]} 1... e5 {[%clk 0:02:59.7]} 2. Nf3 {[%clk 0:02:57.4]}
2... Nc6 {[%clk 0:02:56.9]} 3. Bb5 {[%clk 0:02:55.1]} 3... Nf6 {[%clk
0:02:52.7]} 4. O-O {[%clk 0:02:53.6]} 4... Nxe4 {[%clk 0:02:52.9]} 5. d4 {[%clk
0:02:52.3]} 5... Nd6 {[%clk 0:02:51.9]} 6. Bxc6 {[%clk 0:02:49.5]} 6... dxc6
{[%clk 0:02:52.1]} 7. dxe5 {[%clk 0:02:50.4]} 7... Nf5 {[%clk 0:02:52.4]} 8.
Qxd8+ {[%clk 0:02:51.3]} 8... Kxd8 {[%clk 0:02:53.1]} 9. Nc3 {[%clk 0:02:50.5]}
9... Ke8 {[%clk 0:02:53.3]} 10. h3 {[%clk 0:02:48.9]} 10... h5 {[%clk
0:02:52.2]} 11. Rd1 {[%clk 0:02:46.5]} 11... Be6 {[%clk 0:02:46.5]} 12. Ng5
{[%clk 0:02:44.7]} 12... Rh6 {[%clk 0:02:46.1]} 13. Nxe6 {[%clk 0:02:35.2]}
13... Rxe6 {[%clk 0:02:47]} 14. Bf4 {[%clk 0:02:35.4]} 14... Be7 {[%clk
0:02:27.4]} 15. Rd3 {[%clk 0:01:42.3]} 15... Rd8 {[%clk 0:02:25.9]} 16. Rad1
{[%clk 0:01:41.5]} 16... Rxd3 {[%clk 0:02:25.9]} 17. Rxd3 {[%clk 0:01:40.3]}
17... g5 {[%clk 0:02:15.2]} 18. Bh2 {[%clk 0:01:38.3]} 18... f6 {[%clk
0:02:11.1]} 19. g4 {[%clk 0:01:20.9]} 19... hxg4 {[%clk 0:02:11]} 20. hxg4
{[%clk 0:01:21]} 20... Nh4 {[%clk 0:02:05.7]} 21. Kf1 {[%clk 0:00:56.9]} 21...
fxe5 {[%clk 0:02:01.4]} 22. Ne4 {[%clk 0:00:52.4]} 22... Ng6 {[%clk 0:01:24.6]}
23. Rh3 {[%clk 0:00:50.6]} 23... Nh4 {[%clk 0:01:22]} 24. Re3 {[%clk 0:00:32.1]}
24... Ng6 {[%clk 0:01:19]} 25. Rh3 {[%clk 0:00:26.2]} 25... Nh4 {[%clk 0:00:38]}
26. Ke2 {[%clk 0:00:24.8]} 26... Kf7 {[%clk 0:00:33]} 27. Rb3 {[%clk 0:00:22.4]}
27... b6 {[%clk 0:00:32.7]} 28. Ng3 {[%clk 0:00:08.7]} 28... Bc5 {[%clk
0:00:28.3]} 29. Ne4 {[%clk 0:00:08.3]} 29... Be7 {[%clk 0:00:28.8]} 30. Ng3
{[%clk 0:00:08.4]} 30... Rd6 {[%clk 0:00:23.2]} 31. Ne4 {[%clk 0:00:08]} 31...
Rd4 {[%clk 0:00:22.6]} 32. Re3 {[%clk 0:00:04.7]} 32... Ng2 {[%clk 0:00:22.1]}
33. Rf3+ {[%clk 0:00:04.3]} 33... Ke6 {[%clk 0:00:21.1]} 34. Ng3 {[%clk
0:00:02.3]} 34... Nf4+ {[%clk 0:00:18.6]} 35. Ke1 {[%clk 0:00:02.9]} 35... Bc5
{[%clk 0:00:10.6]} 36. c3 {[%clk 0:00:02.9]} 36... Ra4 {[%clk 0:00:10.5]} 37. a3
{[%clk 0:00:02.5]} 37... e4 {[%clk 0:00:10.7]} 0-1

[Event "Early-Titled-Tuesday-Blitz-January-30-2024"]
[Site "Chess.com"]
[Date "2024.01.30"]
[Round "10"]
[White "SaqoChess_Twitch"]
[Black "GMKrikor"]
[Result "0-1"]
[WhiteElo "2614"]
[BlackElo "2815"]
[TimeControl "180+1"]
[EndTime "10:02:03 PST"]
[Termination "GMKrikor won by resignation"]

1. d4 {[%clk 0:03:00.9]} 1... Nf6 {[%clk 0:02:59.4]} 2. c4 {[%clk 0:03:01.5]}
2... g6 {[%clk 0:02:59.6]} 3. Nc3 {[%clk 0:03:02.1]} 3... d5 {[%clk 0:03:00]} 4.
Bf4 {[%clk 0:02:58.9]} 4... Bg7 {[%clk 0:02:59.8]} 5. e3 {[%clk 0:02:59]} 5...
O-O {[%clk 0:02:59.8]} 6. Rc1 {[%clk 0:02:59.4]} 6... Be6 {[%clk 0:02:59]} 7.
Nf3 {[%clk 0:02:54.6]} 7... dxc4 {[%clk 0:02:55.3]} 8. Ng5 {[%clk 0:02:54.3]}
8... Bg4 {[%clk 0:02:55.3]} 9. Nf3 {[%clk 0:02:43.2]} 9... c5 {[%clk 0:02:43.5]}
10. Bxc4 {[%clk 0:02:42.1]} 10... cxd4 {[%clk 0:02:42.2]} 11. Qxd4 {[%clk
0:02:37.4]} 11... Bxf3 {[%clk 0:02:34.1]} 12. Qxd8 {[%clk 0:02:36.5]} 12... Rxd8
{[%clk 0:02:35]} 13. gxf3 {[%clk 0:02:36.6]} 13... Nc6 {[%clk 0:02:31.4]} 14. a3
{[%clk 0:02:28.3]} 14... Rac8 {[%clk 0:02:23.3]} 15. Ba2 {[%clk 0:02:24.9]}
15... Nh5 {[%clk 0:02:05.4]} 16. Bg3 {[%clk 0:02:22.6]} 16... Nxg3 {[%clk
0:02:05.4]} 17. hxg3 {[%clk 0:02:22.6]} 17... Ne5 {[%clk 0:02:06.3]} 18. Ke2
{[%clk 0:01:21.8]} 18... Nd3 {[%clk 0:02:05.2]} 19. Rc2 {[%clk 0:01:09.7]} 19...
Nxb2 {[%clk 0:02:02.5]} 20. Rhc1 {[%clk 0:00:37.2]} 20... Nd3 {[%clk 0:01:06.2]}
21. Rd1 {[%clk 0:00:37.3]} 21... Nxf2 {[%clk 0:00:33.7]} 22. Rxd8+ {[%clk
0:00:23.9]} 22... Rxd8 {[%clk 0:00:34.6]} 23. Kxf2 {[%clk 0:00:24.1]} 23... Bxc3
{[%clk 0:00:34]} 24. Bxf7+ {[%clk 0:00:24.4]} 24... Kxf7 {[%clk 0:00:34.9]} 25.
Rxc3 {[%clk 0:00:25]} 25... Rd2+ {[%clk 0:00:35]} 26. Kf1 {[%clk 0:00:23.6]}
26... Ra2 {[%clk 0:00:30.9]} 27. f4 {[%clk 0:00:22.5]} 27... b5 {[%clk
0:00:26.1]} 28. g4 {[%clk 0:00:21.7]} 28... h5 {[%clk 0:00:21.2]} 29. gxh5
{[%clk 0:00:17]} 29... gxh5 {[%clk 0:00:21.2]} 30. e4 {[%clk 0:00:17.5]} 30...
h4 {[%clk 0:00:19.5]} 31. Rh3 {[%clk 0:00:17.1]} 31... a5 {[%clk 0:00:18.6]} 32.
Rxh4 {[%clk 0:00:14.9]} 32... Rxa3 {[%clk 0:00:17.8]} 33. Kf2 {[%clk 0:00:15.6]}
33... a4 {[%clk 0:00:14.8]} 34. Rh5 {[%clk 0:00:15.9]} 34... Rb3 {[%clk
0:00:15]} 35. Rh8 {[%clk 0:00:15.4]} 35... a3 {[%clk 0:00:15.4]} 36. Ra8 {[%clk
0:00:16.1]} 36... b4 {[%clk 0:00:16]} 37. Ra6 {[%clk 0:00:12.3]} 37... Rb2+
{[%clk 0:00:12.7]} 38. Kf3 {[%clk 0:00:13]} 38... a2 {[%clk 0:00:13.4]} 39. e5
{[%clk 0:00:13.2]} 39... e6 {[%clk 0:00:12.1]} 40. Kg4 {[%clk 0:00:08.7]} 40...
b3 {[%clk 0:00:11.2]} 41. Kg5 {[%clk 0:00:08.9]} 41... Rg2+ {[%clk 0:00:11]} 42.
Kh6 {[%clk 0:00:09.1]} 42... Rg1 {[%clk 0:00:10.1]} 43. Ra7+ {[%clk 0:00:09.2]}
43... Ke8 {[%clk 0:00:10.4]} 44. Ra8+ {[%clk 0:00:09.7]} 44... Kd7 {[%clk
0:00:10.8]} 45. Ra7+ {[%clk 0:00:10.4]} 45... Kc6 {[%clk 0:00:11.3]} 46. f5
{[%clk 0:00:09.3]} 46... exf5 {[%clk 0:00:11.2]} 47. e6 {[%clk 0:00:09.3]} 47...
a1=Q {[%clk 0:00:11.9]} 48. Rxa1 {[%clk 0:00:09.5]} 48... Rxa1 {[%clk
0:00:12.3]} 49. e7 {[%clk 0:00:10.4]} 49... Re1 {[%clk 0:00:12.4]} 50. e8=Q+
{[%clk 0:00:10.6]} 0-1

[Event "Early-Titled-Tuesday-Blitz-January-30-2024"]
[Site "Chess.com"]
[Date "2024.01.30"]
[Round "10"]
[White "ChessSwole"]
[Black "InitiatingASC"]
[Result "0-1"]
[WhiteElo "2590"]
[BlackElo "2439"]
[TimeControl "180+1"]
[EndTime "10:02:03 PST"]
[Termination "InitiatingASC won on time"]

1. e4 {[%clk 0:03:00.9]} 1... c5 {[%clk 0:02:59.9]} 2. Nf3 {[%clk 0:03:00.8]}
2... Nc6 {[%clk 0:03:00.6]} 3. Nc3 {[%clk 0:02:59.5]} 3... Nf6 {[%clk
0:03:00.5]} 4. Bc4 {[%clk 0:02:51.9]} 4... Nxe4 {[%clk 0:02:56.5]} 5. Nxe4
{[%clk 0:02:45.1]} 5... d5 {[%clk 0:02:56.4]} 6. Bd3 {[%clk 0:02:38.8]} 6...
dxe4 {[%clk 0:02:53.2]} 7. Bxe4 {[%clk 0:02:39.7]} 7... Nd4 {[%clk 0:02:50.3]}
8. O-O {[%clk 0:02:36.9]} 8... e6 {[%clk 0:02:43.5]} 9. c3 {[%clk 0:02:36.8]}
9... Nxf3+ {[%clk 0:02:42.3]} 10. Qxf3 {[%clk 0:02:37.7]} 10... Qc7 {[%clk
0:02:39.7]} 11. d4 {[%clk 0:02:25.6]} 11... cxd4 {[%clk 0:02:37.8]} 12. Bf4
{[%clk 0:02:22]} 12... Bd6 {[%clk 0:02:37]} 13. Bxd6 {[%clk 0:02:16.4]} 13...
Qxd6 {[%clk 0:02:37.4]} 14. Bxb7 {[%clk 0:02:11.4]} 14... Bxb7 {[%clk
0:02:34.1]} 15. Qxb7 {[%clk 0:02:12.2]} 15... O-O {[%clk 0:02:32.9]} 16. Rad1
{[%clk 0:02:07.1]} 16... d3 {[%clk 0:02:32.4]} 17. Qe4 {[%clk 0:02:04.5]} 17...
Rfd8 {[%clk 0:02:20]} 18. Rd2 {[%clk 0:02:04.2]} 18... Qd5 {[%clk 0:02:13.2]}
19. Qxd5 {[%clk 0:01:54.9]} 19... Rxd5 {[%clk 0:02:13.3]} 20. Rfd1 {[%clk
0:01:55.6]} 20... Rad8 {[%clk 0:02:13.6]} 21. f3 {[%clk 0:01:55.3]} 21... h5
{[%clk 0:02:06.8]} 22. Kf2 {[%clk 0:01:55.5]} 22... h4 {[%clk 0:02:05.3]} 23.
Ke3 {[%clk 0:01:55.8]} 23... Re5+ {[%clk 0:02:04.9]} 24. Kf4 {[%clk 0:01:46.9]}
24... Red5 {[%clk 0:01:52.4]} 25. Ke4 {[%clk 0:01:46.4]} 25... Rb5 {[%clk
0:01:26.9]} 26. b3 {[%clk 0:01:36.6]} 26... Rg5 {[%clk 0:01:26.4]} 27. f4 {[%clk
0:01:23.3]} 27... Ra5 {[%clk 0:01:18.9]} 28. a4 {[%clk 0:01:16.9]} 28... Rb8
{[%clk 0:01:17.9]} 29. b4 {[%clk 0:01:04.3]} 29... Rxa4 {[%clk 0:01:15.8]} 30.
Rxd3 {[%clk 0:01:05]} 30... a5 {[%clk 0:01:13.4]} 31. Rd8+ {[%clk 0:01:05.6]}
31... Rxd8 {[%clk 0:01:13.2]} 32. Rxd8+ {[%clk 0:01:06.5]} 32... Kh7 {[%clk
0:01:13.1]} 33. Ra8 {[%clk 0:01:06.1]} 33... Ra3 {[%clk 0:01:13.1]} 34. Rxa5
{[%clk 0:00:50.9]} 34... Rxc3 {[%clk 0:01:12.7]} 35. Rh5+ {[%clk 0:00:48.5]}
35... Kg6 {[%clk 0:01:11.2]} 36. Rg5+ {[%clk 0:00:44.6]} 36... Kf6 {[%clk
0:01:10.9]} 37. Kd4 {[%clk 0:00:43.3]} 37... Rb3 {[%clk 0:01:03.4]} 38. b5
{[%clk 0:00:43.2]} 38... Rb4+ {[%clk 0:00:59.2]} 39. Ke3 {[%clk 0:00:42]} 39...
Rb3+ {[%clk 0:00:58.8]} 40. Kf2 {[%clk 0:00:41.7]} 40... h3 {[%clk 0:00:53.3]}
41. g4 {[%clk 0:00:38.5]} 41... g6 {[%clk 0:00:44.7]} 42. Re5 {[%clk 0:00:33.9]}
42... Ke7 {[%clk 0:00:36.9]} 43. g5 {[%clk 0:00:20]} 43... Kd6 {[%clk
0:00:33.5]} 44. Kf1 {[%clk 0:00:06.9]} 44... Rb2 {[%clk 0:00:29.4]} 45. Kg1
{[%clk 0:00:06.4]} 45... Rg2+ {[%clk 0:00:27.8]} 46. Kh1 {[%clk 0:00:06.8]}
46... Rf2 {[%clk 0:00:26.6]} 47. Kg1 {[%clk 0:00:07]} 47... Rxf4 {[%clk
0:00:27]} 48. Re3 {[%clk 0:00:05.6]} 48... Rg4+ {[%clk 0:00:26.8]} 49. Kf1
{[%clk 0:00:06.2]} 49... Rxg5 {[%clk 0:00:26.7]} 50. Rb3 {[%clk 0:00:06.6]}
50... Kc7 {[%clk 0:00:26.1]} 51. b6+ {[%clk 0:00:04.1]} 51... Kb7 {[%clk
0:00:26.3]} 52. Rb4 {[%clk 0:00:03.4]} 52... Rg2 {[%clk 0:00:24.4]} 53. Rf4
{[%clk 0:00:02.2]} 53... f5 {[%clk 0:00:22.9]} 0-1

[Event "Early-Titled-Tuesday-Blitz-January-30-2024"]
[Site "Chess.com"]
[Date "2024.01.30"]
[Round "10"]
[White "ural58"]
[Black "Baby_Legs"]
[Result "1/2-1/2"]
[WhiteElo "2456"]
[BlackElo "2620"]
[TimeControl "180+1"]
[EndTime "10:02:05 PST"]
[Termination "Game drawn by repetition"]

1. e4 {[%clk 0:03:00.9]} 1... g6 {[%clk 0:03:00.6]} 2. d4 {[%clk 0:02:59.6]}
2... Bg7 {[%clk 0:03:01.2]} 3. Nc3 {[%clk 0:02:59.6]} 3... d6 {[%clk 0:03:01.7]}
4. h4 {[%clk 0:02:54]} 4... h5 {[%clk 0:02:56]} 5. Nf3 {[%clk 0:02:53]} 5... Bg4
{[%clk 0:02:53.1]} 6. Be2 {[%clk 0:02:53]} 6... Nc6 {[%clk 0:02:53.4]} 7. Be3
{[%clk 0:02:52.9]} 7... e5 {[%clk 0:02:52.4]} 8. d5 {[%clk 0:02:52.6]} 8... Bxf3
{[%clk 0:02:34.5]} 9. gxf3 {[%clk 0:02:52.3]} 9... Nb8 {[%clk 0:02:22.4]} 10.
Qd2 {[%clk 0:02:48.5]} 10... Nd7 {[%clk 0:02:20.5]} 11. O-O-O {[%clk 0:02:47.4]}
11... Bh6 {[%clk 0:02:20.4]} 12. Bg5 {[%clk 0:02:40.8]} 12... Bxg5 {[%clk
0:02:05.3]} 13. hxg5 {[%clk 0:02:40.3]} 13... f6 {[%clk 0:02:05.2]} 14. Rdg1
{[%clk 0:02:31.3]} 14... fxg5 {[%clk 0:01:40.3]} 15. Rxg5 {[%clk 0:02:22.8]}
15... Qf6 {[%clk 0:01:40.3]} 16. Qe3 {[%clk 0:01:57.2]} 16... a6 {[%clk
0:01:36.5]} 17. Rhg1 {[%clk 0:01:56.7]} 17... Ne7 {[%clk 0:01:35.5]} 18. b4
{[%clk 0:01:50.5]} 18... Qf4 {[%clk 0:01:25.8]} 19. Kb2 {[%clk 0:01:49.2]} 19...
Qxe3 {[%clk 0:01:22.7]} 20. fxe3 {[%clk 0:01:48.9]} 20... Rf8 {[%clk 0:01:19.1]}
21. R5g3 {[%clk 0:01:10.9]} 21... Rf6 {[%clk 0:01:15.9]} 22. Bf1 {[%clk
0:01:10.5]} 22... O-O-O {[%clk 0:01:07.8]} 23. Ne2 {[%clk 0:01:08.1]} 23... Rdf8
{[%clk 0:01:07.1]} 24. f4 {[%clk 0:01:08]} 24... Kd8 {[%clk 0:01:04]} 25. Bh3
{[%clk 0:01:06.1]} 25... Nb6 {[%clk 0:01:01.7]} 26. Kb3 {[%clk 0:01:05.5]} 26...
exf4 {[%clk 0:00:43.8]} 27. exf4 {[%clk 0:01:04.7]} 27... Rxf4 {[%clk
0:00:44.7]} 28. Nxf4 {[%clk 0:01:04.1]} 28... Rxf4 {[%clk 0:00:45.6]} 29. Rf1
{[%clk 0:00:53.7]} 29... Rxf1 {[%clk 0:00:44.6]} 30. Bxf1 {[%clk 0:00:53.4]}
30... Nd7 {[%clk 0:00:45]} 31. c4 {[%clk 0:00:50.7]} 31... Ne5 {[%clk
0:00:42.8]} 32. c5 {[%clk 0:00:49.7]} 32... h4 {[%clk 0:00:39.7]} 33. Rg5 {[%clk
0:00:38.3]} 33... Nf3 {[%clk 0:00:33.9]} 34. Rg2 {[%clk 0:00:35.7]} 34... g5
{[%clk 0:00:32.5]} 35. Rf2 {[%clk 0:00:25.5]} 35... g4 {[%clk 0:00:27.8]} 36.
Bg2 {[%clk 0:00:20.5]} 36... Ne5 {[%clk 0:00:24.7]} 37. Rf8+ {[%clk 0:00:20.5]}
37... Kd7 {[%clk 0:00:25.2]} 38. Rh8 {[%clk 0:00:20.7]} 38... h3 {[%clk
0:00:25]} 39. Bxh3 {[%clk 0:00:20.8]} 39... gxh3 {[%clk 0:00:24.9]} 40. Rxh3
{[%clk 0:00:21.5]} 40... Ng4 {[%clk 0:00:20.5]} 41. a4 {[%clk 0:00:20.2]} 41...
Nf6 {[%clk 0:00:20.8]} 42. Re3 {[%clk 0:00:18.6]} 42... Ng6 {[%clk 0:00:21.2]}
43. Kc3 {[%clk 0:00:17.9]} 43... Ne5 {[%clk 0:00:21.3]} 44. Kd4 {[%clk
0:00:18.1]} 44... b6 {[%clk 0:00:20.7]} 45. cxb6 {[%clk 0:00:17.5]} 45... cxb6
{[%clk 0:00:21.6]} 46. Rh3 {[%clk 0:00:17.4]} 46... Ng8 {[%clk 0:00:20.5]} 47.
Rh7+ {[%clk 0:00:17.3]} 47... Ne7 {[%clk 0:00:21]} 48. a5 {[%clk 0:00:16.6]}
48... bxa5 {[%clk 0:00:20.7]} 49. bxa5 {[%clk 0:00:16.8]} 49... Kd8 {[%clk
0:00:21.3]} 50. Rh8+ {[%clk 0:00:16.8]} 50... Kc7 {[%clk 0:00:20.9]} 51. Re8
{[%clk 0:00:16.7]} 51... Nc8 {[%clk 0:00:20.5]} 52. Rh8 {[%clk 0:00:15.7]} 52...
Nf3+ {[%clk 0:00:20.8]} 53. Ke3 {[%clk 0:00:15.3]} 53... Ne5 {[%clk 0:00:21.7]}
54. Kd4 {[%clk 0:00:15.8]} 54... Nf3+ {[%clk 0:00:21.1]} 55. Ke3 {[%clk
0:00:16.1]} 55... Ne5 {[%clk 0:00:22]} 56. Kd4 {[%clk 0:00:16.5]} 1/2-1/2

[Event "Early-Titled-Tuesday-Blitz-January-30-2024"]
[Site "Chess.com"]
[Date "2024.01.30"]
[Round "10"]
[White "1977Ivan"]
[Black "Jumbo"]
[Result "0-1"]
[WhiteElo "2817"]
[BlackElo "2947"]
[TimeControl "180+1"]
[EndTime "10:02:07 PST"]
[Termination "Jumbo won by resignation"]

1. d4 {[%clk 0:02:59.5]} 1... Nf6 {[%clk 0:02:59.4]} 2. Nc3 {[%clk 0:02:59.5]}
2... d5 {[%clk 0:02:59]} 3. Bf4 {[%clk 0:02:59.5]} 3... g6 {[%clk 0:02:59]} 4.
Nb5 {[%clk 0:02:42.1]} 4... Na6 {[%clk 0:02:58]} 5. e3 {[%clk 0:02:41.9]} 5...
c6 {[%clk 0:02:55.1]} 6. Nc3 {[%clk 0:02:41]} 6... Nc7 {[%clk 0:02:42.9]} 7. Bd3
{[%clk 0:02:36.8]} 7... Bg7 {[%clk 0:02:42]} 8. h4 {[%clk 0:02:30.5]} 8... h5
{[%clk 0:02:41.6]} 9. Be5 {[%clk 0:02:23.7]} 9... O-O {[%clk 0:02:28.7]} 10.
Nge2 {[%clk 0:02:17.7]} 10... Ng4 {[%clk 0:02:23.7]} 11. Bxg7 {[%clk 0:02:16.9]}
11... Kxg7 {[%clk 0:02:24.6]} 12. Qd2 {[%clk 0:02:16]} 12... Qd6 {[%clk
0:02:14.6]} 13. f3 {[%clk 0:02:13.8]} 13... Nf6 {[%clk 0:02:12.9]} 14. e4 {[%clk
0:01:59.9]} 14... e5 {[%clk 0:01:32]} 15. Qg5 {[%clk 0:01:43.5]} 15... Nd7
{[%clk 0:00:52.6]} 16. exd5 {[%clk 0:01:24.4]} 16... Nxd5 {[%clk 0:00:51.8]} 17.
Nxd5 {[%clk 0:01:23.9]} 17... Qxd5 {[%clk 0:00:48.7]} 18. Be4 {[%clk 0:01:08]}
18... Qc4 {[%clk 0:00:31.9]} 19. b3 {[%clk 0:01:07.5]} 19... Qb4+ {[%clk
0:00:32]} 20. c3 {[%clk 0:01:07]} 20... Qa5 {[%clk 0:00:22.8]} 21. O-O {[%clk
0:01:04.9]} 21... Qd8 {[%clk 0:00:22.6]} 22. Rad1 {[%clk 0:00:48]} 22... Qxg5
{[%clk 0:00:16.8]} 23. hxg5 {[%clk 0:00:48.9]} 23... exd4 {[%clk 0:00:14.5]} 24.
Nxd4 {[%clk 0:00:49.8]} 24... Re8 {[%clk 0:00:14.3]} 25. b4 {[%clk 0:00:44.7]}
25... Nb6 {[%clk 0:00:12.6]} 26. Bc2 {[%clk 0:00:39.7]} 26... Be6 {[%clk
0:00:11.5]} 27. Nxe6+ {[%clk 0:00:38.1]} 27... Rxe6 {[%clk 0:00:12.4]} 28. Bb3
{[%clk 0:00:37.8]} 28... Re7 {[%clk 0:00:12.3]} 29. Rfe1 {[%clk 0:00:35.7]}
29... Rae8 {[%clk 0:00:10.7]} 30. Rxe7 {[%clk 0:00:35.1]} 30... Rxe7 {[%clk
0:00:11.6]} 31. Kf2 {[%clk 0:00:35.3]} 31... Rd7 {[%clk 0:00:07.3]} 32. Rxd7
{[%clk 0:00:33.4]} 32... Nxd7 {[%clk 0:00:08.2]} 33. Ke3 {[%clk 0:00:33.8]}
33... f6 {[%clk 0:00:08]} 34. f4 {[%clk 0:00:30.3]} 34... fxg5 {[%clk
0:00:05.6]} 35. fxg5 {[%clk 0:00:31.2]} 35... Ne5 {[%clk 0:00:06]} 36. Ke4
{[%clk 0:00:30.6]} 36... Nf7 {[%clk 0:00:05.8]} 37. Bxf7 {[%clk 0:00:22.7]}
37... Kxf7 {[%clk 0:00:06.7]} 38. Ke5 {[%clk 0:00:23]} 38... Ke7 {[%clk
0:00:06]} 39. g3 {[%clk 0:00:20.1]} 39... b5 {[%clk 0:00:05.4]} 40. c4 {[%clk
0:00:18.3]} 40... bxc4 {[%clk 0:00:04.2]} 41. Kd4 {[%clk 0:00:18.6]} 41... Ke6
{[%clk 0:00:04.2]} 42. Kxc4 {[%clk 0:00:18.6]} 42... Kf5 {[%clk 0:00:04.9]} 43.
Kc5 {[%clk 0:00:18.9]} 43... Kg4 {[%clk 0:00:05.5]} 44. Kxc6 {[%clk 0:00:18.1]}
44... Kxg3 {[%clk 0:00:06.2]} 45. b5 {[%clk 0:00:18.4]} 45... h4 {[%clk
0:00:06.9]} 46. a4 {[%clk 0:00:14.9]} 46... h3 {[%clk 0:00:07]} 47. a5 {[%clk
0:00:15.1]} 47... h2 {[%clk 0:00:07.2]} 48. b6 {[%clk 0:00:15.5]} 48... h1=Q+
{[%clk 0:00:07]} 49. Kc7 {[%clk 0:00:15.4]} 49... axb6 {[%clk 0:00:07.4]} 50.
axb6 {[%clk 0:00:15.3]} 50... Qc1+ {[%clk 0:00:07.9]} 0-1

[Event "Early-Titled-Tuesday-Blitz-January-30-2024"]
[Site "Chess.com"]
[Date "2024.01.30"]
[Round "10"]
[White "Legendinunknown"]
[Black "gahryman"]
[Result "1/2-1/2"]
[WhiteElo "2828"]
[BlackElo "2671"]
[TimeControl "180+1"]
[EndTime "10:02:08 PST"]
[Termination "Game drawn by repetition"]

1. d4 {[%clk 0:03:00.9]} 1... Nf6 {[%clk 0:02:59.7]} 2. c4 {[%clk 0:02:59.8]}
2... e6 {[%clk 0:02:59.7]} 3. Nc3 {[%clk 0:02:59.1]} 3... d5 {[%clk 0:03:00.3]}
4. cxd5 {[%clk 0:02:55.2]} 4... exd5 {[%clk 0:03:01.2]} 5. Bg5 {[%clk
0:02:55.8]} 5... c6 {[%clk 0:03:00.3]} 6. e3 {[%clk 0:02:55.3]} 6... Bd6 {[%clk
0:03:00.6]} 7. Bd3 {[%clk 0:02:54.8]} 7... O-O {[%clk 0:03:00.4]} 8. Nge2 {[%clk
0:02:55.1]} 8... Re8 {[%clk 0:02:56.7]} 9. Qc2 {[%clk 0:02:54.5]} 9... h6 {[%clk
0:02:56.2]} 10. Bh4 {[%clk 0:02:49.3]} 10... a5 {[%clk 0:02:56.1]} 11. h3 {[%clk
0:02:44.7]} 11... Na6 {[%clk 0:02:55.9]} 12. a3 {[%clk 0:02:44.1]} 12... Nc7
{[%clk 0:02:56]} 13. g4 {[%clk 0:02:42.7]} 13... Ne6 {[%clk 0:02:51.9]} 14. f4
{[%clk 0:02:32.5]} 14... b5 {[%clk 0:02:30.4]} 15. Nd1 {[%clk 0:02:23.2]} 15...
Bd7 {[%clk 0:02:14.9]} 16. O-O {[%clk 0:01:52.5]} 16... c5 {[%clk 0:02:05.9]}
17. Rc1 {[%clk 0:01:43.8]} 17... c4 {[%clk 0:02:02.1]} 18. Bf5 {[%clk
0:01:42.2]} 18... Nf8 {[%clk 0:01:59.3]} 19. Ng3 {[%clk 0:01:37.1]} 19... Be7
{[%clk 0:01:49.8]} 20. Bxd7 {[%clk 0:01:30.1]} 20... Qxd7 {[%clk 0:01:49.2]} 21.
Nf5 {[%clk 0:01:26.2]} 21... Bd8 {[%clk 0:01:36.4]} 22. Nf2 {[%clk 0:01:25.2]}
22... Ne4 {[%clk 0:01:30.5]} 23. Nxe4 {[%clk 0:01:20.6]} 23... Rxe4 {[%clk
0:01:28.9]} 24. Bxd8 {[%clk 0:01:09.8]} 24... Rxd8 {[%clk 0:01:28]} 25. Rf3
{[%clk 0:01:10.3]} 25... Rde8 {[%clk 0:01:27.6]} 26. Qf2 {[%clk 0:01:08.6]}
26... b4 {[%clk 0:01:26.5]} 27. Ng3 {[%clk 0:01:04.3]} 27... R4e7 {[%clk
0:01:25.5]} 28. f5 {[%clk 0:01:04.7]} 28... Nh7 {[%clk 0:01:23.8]} 29. Nh5
{[%clk 0:01:04.7]} 29... Ng5 {[%clk 0:01:22.9]} 30. Nxg7 {[%clk 0:00:49.3]}
30... Nxf3+ {[%clk 0:01:22.5]} 31. Qxf3 {[%clk 0:00:49.1]} 31... Rxe3 {[%clk
0:01:22.8]} 32. Nxe8 {[%clk 0:00:48.7]} 32... Qxe8 {[%clk 0:01:21.3]} 33. Qf4
{[%clk 0:00:48.5]} 33... Re1+ {[%clk 0:01:17.3]} 34. Rxe1 {[%clk 0:00:46.6]}
34... Qxe1+ {[%clk 0:01:18.2]} 35. Kg2 {[%clk 0:00:47.1]} 35... Qe4+ {[%clk
0:01:08.1]} 36. Qxe4 {[%clk 0:00:43.1]} 36... dxe4 {[%clk 0:01:09]} 37. axb4
{[%clk 0:00:42.1]} 37... a4 {[%clk 0:01:09.3]} 38. b5 {[%clk 0:00:28.4]} 38...
a3 {[%clk 0:01:03]} 39. bxa3 {[%clk 0:00:27.3]} 39... c3 {[%clk 0:01:03.4]} 40.
b6 {[%clk 0:00:27.7]} 40... c2 {[%clk 0:01:03.4]} 41. b7 {[%clk 0:00:28.2]}
41... c1=Q {[%clk 0:01:03.5]} 42. b8=Q+ {[%clk 0:00:28.5]} 42... Kh7 {[%clk
0:01:04.2]} 43. Qb3 {[%clk 0:00:20.6]} 43... Qd2+ {[%clk 0:00:58.6]} 44. Kg3
{[%clk 0:00:20.4]} 44... Kg7 {[%clk 0:00:57.2]} 45. Qd5 {[%clk 0:00:12.9]} 45...
Qe3+ {[%clk 0:00:55.6]} 46. Kg2 {[%clk 0:00:13.2]} 46... Qf3+ {[%clk 0:00:55.7]}
47. Kh2 {[%clk 0:00:13.1]} 47... Qf2+ {[%clk 0:00:52.8]} 48. Kh1 {[%clk
0:00:13.4]} 48... e3 {[%clk 0:00:52.1]} 49. Qe5+ {[%clk 0:00:13.6]} 49... Kh7
{[%clk 0:00:52.5]} 50. Qe7 {[%clk 0:00:13.5]} 50... Qf3+ {[%clk 0:00:32.2]} 51.
Kh2 {[%clk 0:00:12.8]} 51... Kg7 {[%clk 0:00:32]} 52. Qe5+ {[%clk 0:00:12]}
52... Kh7 {[%clk 0:00:29.6]} 53. Qe7 {[%clk 0:00:11.7]} 53... Qf2+ {[%clk
0:00:27.1]} 54. Kh1 {[%clk 0:00:11.6]} 54... Qf3+ {[%clk 0:00:27.3]} 55. Kh2
{[%clk 0:00:12]} 1/2-1/2